bitfinex/quotes_BTCUSD_20230110
["timestamp","ask_amount","ask_price","bid_price","bid_amount"]
[1673344830257,0.06163985,17254.0,17253.0,2.19150448]
[1673344830515,0.06163985,17254.0,17253.0,1.93085753]
[1673344832533,0.95884668,17256.0,17254.0,0.5166999]
[1673344832780,0.5085,17256.0,17254.0,1.0962709]
[1673344833243,1.19867382,17256.0,17254.0,1.0962709]
[1673344833492,1.64722964,17256.0,17254.0,1.0962709]
[1673344833741,1.65622964,17256.0,17254.0,1.1282709]
[1673344838744,1.9165428,17256.0,17254.0,1.1282709]
[1673344841754,1.9165428,17256.0,17254.0,1.7078459]
[1673344842265,0.17354211,17255.0,17254.0,1.88161054]
[1673344842519,0.17354211,17255.0,17254.0,1.89011054]
[1673344843027,0.17354211,17255.0,17254.0,1.85811054]
[1673344843538,0.18254211,17255.0,17254.0,1.89011054]
[1673344844043,0.18254211,17255.0,17254.0,1.31053954]
[1673344851219,0.18254211,17255.0,17254.0,1.89011454]
[1673344852232,0.18254211,17255.0,17254.0,1.31053954]
[1673344852475,0.22505601,17255.0,17254.0,1.31053954]
[1673344852974,0.0515139,17255.0,17254.0,1.31053954]
[1673344853242,0.22505601,17255.0,17254.0,1.31053954]
[1673344855733,0.0515139,17255.0,17254.0,2.29721579]
[1673344855991,0.0515139,17255.0,17254.0,1.57118649]
[1673344856490,0.0515139,17255.0,17254.0,2.29721209]
[1673344858016,0.0515139,17255.0,17254.0,1.57118649]
[1673344858532,0.0515139,17255.0,17254.0,1.31053954]
[1673344858780,0.22505601,17255.0,17254.0,1.31053954]
[1673344859544,0.0515139,17255.0,17254.0,1.31053954]
[1673344859796,0.22505601,17255.0,17254.0,1.31053954]
[1673344860049,0.0515139,17255.0,17254.0,1.31053954]
[1673344860756,0.22505601,17255.0,17254.0,1.31053954]
[1673344863266,0.48536917,17255.0,17254.0,1.1367749]
[1673344869094,0.22505601,17255.0,17254.0,1.1367749]
[1673344871663,0.48536917,17255.0,17254.0,1.1367749]
[1673344872419,0.22505601,17255.0,17254.0,1.1367749]
[1673344874110,0.22505601,17255.0,17254.0,1.31053954]
[1673344876911,0.0515139,17255.0,17254.0,1.31053954]
[1673344877389,0.22505601,17255.0,17254.0,1.31053954]
[1673344877895,0.22505601,17255.0,17254.0,1.1367749]
[1673344882327,0.22505601,17255.0,17254.0,1.31053954]
[1673344883558,0.22505601,17255.0,17254.0,1.1367749]
[1673344884061,0.19635601,17255.0,17254.0,1.31053954]
[1673344888554,0.0228139,17255.0,17254.0,1.31053954]
[1673344888816,0.19635601,17255.0,17254.0,1.31053954]
[1673344890013,0.0228139,17255.0,17254.0,1.57118649]
[1673344890534,0.0228139,17255.0,17254.0,1.31053954]
[1673344890782,0.0228139,17255.0,17254.0,1.57118649]
[1673344891414,0.0228139,17255.0,17254.0,1.31053954]
[1673344892061,0.0228139,17255.0,17254.0,1.57118649]
[1673344892562,0.0228139,17255.0,17254.0,1.31053954]
[1673344900865,0.19635601,17255.0,17254.0,1.31053954]
[1673344901810,0.0228139,17255.0,17254.0,1.31053954]
[1673344903011,0.19635601,17255.0,17254.0,1.1367749]
[1673344903517,0.19635601,17255.0,17254.0,1.31053954]
[1673344903772,0.0228139,17255.0,17254.0,1.31053954]
[1673344904302,0.19635601,17255.0,17254.0,1.31053954]
[1673344904542,0.0228139,17255.0,17254.0,1.31053954]
[1673344905553,0.19635601,17255.0,17254.0,1.31053954]
[1673344908067,0.19635601,17255.0,17254.0,1.1367749]
[1673344908326,0.19635601,17255.0,17254.0,1.31053954]
[1673344910049,0.0228139,17255.0,17254.0,1.31053954]
[1673344910556,0.19635601,17255.0,17254.0,1.31053954]
[1673344916819,0.0228139,17255.0,17254.0,1.31053954]
[1673344917541,0.0228139,17255.0,17254.0,1.57118649]
[1673344918270,0.0228139,17255.0,17254.0,1.31053954]
[1673344918515,0.0228139,17255.0,17254.0,1.57118649]
[1673344918978,0.0228139,17255.0,17254.0,1.31053954]
[1673344920142,0.0228139,17255.0,17254.0,1.57118649]
[1673344920396,0.0228139,17255.0,17254.0,1.31053954]
[1673344920680,0.19635601,17255.0,17254.0,1.31053954]
[1673344921394,0.21954821,17255.0,17254.0,1.31053954]
[1673344924575,0.21954821,17255.0,17254.0,1.45262454]
[1673344924831,0.21954821,17255.0,17254.0,1.2788599]
[1673344925330,0.47986137,17255.0,17254.0,1.2788599]
[1673344927807,0.21954821,17255.0,17254.0,1.2788599]
[1673344928058,0.47986137,17255.0,17254.0,1.2788599]
[1673344930543,0.47986137,17255.0,17254.0,0.76216]
[1673344931051,0.92841719,17255.0,17254.0,0.76216]
[1673344931300,0.47986137,17255.0,17254.0,0.76216]
[1673344933304,0.92841719,17255.0,17254.0,0.76216]
[1673344933808,0.47986137,17255.0,17254.0,0.76216]
[1673344934997,0.92841719,17255.0,17254.0,0.76216]
[1673344935249,3.26958639,17255.0,17254.0,0.182585]
[1673344935498,3.63057739,17255.0,17254.0,0.182585]
[1673344935763,2.97803357,17255.0,17254.0,0.182585]
[1673344936237,3.05559622,17255.0,17254.0,0.182585]
[1673344936508,4.1561695,17255.0,17254.0,0.182585]
[1673344936761,3.63513822,17255.0,17254.0,0.182585]
[1673344939503,4.06862366,17255.0,17254.0,0.182585]
[1673344943252,4.64816566,17255.0,17254.0,0.182585]
[1673344944252,4.99474408,17255.0,17254.0,0.182585]
[1673344945248,4.70815291,17255.0,17254.0,0.182585]
[1673344945499,4.70815291,17255.0,17254.0,0.174085]
[1673344945760,4.27466747,17255.0,17254.0,0.174085]
[1673344946248,4.7077887,17255.0,17254.0,0.174085]
[1673344950744,5.05418408,17255.0,17254.0,0.174085]
[1673344951997,4.7077887,17255.0,17254.0,0.174085]
[1673344957122,5.05417498,17255.0,17254.0,0.174085]
[1673344957938,5.05417498,17255.0,17254.0,0.17401122]
[1673344958188,5.02944568,17255.0,17254.0,0.17401122]
[1673344958436,5.02944547,17255.0,17254.0,0.17401122]
[1673344960261,4.68305919,17255.0,17254.0,0.17401122]
[1673344965086,4.24993796,17255.0,17254.0,0.17401122]
[1673344965332,4.68314624,17255.0,17254.0,0.17401122]
[1673344970034,4.68297648,17255.0,17254.0,0.18251122]
[1673344970968,4.2497682,17255.0,17254.0,0.18251122]
[1673344973450,4.77079948,17255.0,17254.0,0.18251122]
[1673344974231,4.2497682,17255.0,17254.0,0.18251122]
[1673344975463,4.77079948,17255.0,17254.0,0.18251122]
[1673344977438,5.03180073,17255.0,17254.0,0.18251122]
[1673344977690,4.77079948,17255.0,17254.0,0.18251122]
[1673344979194,4.60349948,17255.0,17254.0,0.18251122]
[1673344980446,4.86725152,17255.0,17254.0,0.18251122]
[1673344980677,4.34622024,17255.0,17254.0,0.18251122]
[1673344981447,4.86698788,17255.0,17254.0,0.18251122]
[1673344981703,4.60323584,17255.0,17254.0,0.18251122]
[1673344983107,4.86704533,17255.0,17254.0,0.18251122]
[1673344983335,4.34627769,17255.0,17254.0,0.18251122]
[1673344984617,4.60319959,17255.0,17254.0,0.18251122]
[1673344987168,4.60319959,17255.0,17254.0,0.17751122]
[1673344989209,4.0824682,17255.0,17254.0,0.17751122]
[1673344989466,3.7214772,17255.0,17254.0,0.17751122]
[1673344990466,4.0824682,17255.0,17254.0,0.17751122]
[1673344990722,3.7214772,17255.0,17254.0,0.17751122]
[1673344990964,3.72138472,17255.0,17254.0,0.17751122]
[1673344991223,4.08237572,17255.0,17254.0,0.17751122]
[1673344991482,3.72138472,17255.0,17254.0,0.17751122]
[1673344992451,4.08237572,17255.0,17254.0,0.17751122]
[1673344995691,1.30901466,17255.0,17254.0,0.17751122]
[1673344995927,1.7429459,17255.0,17254.0,0.86092058]
[1673344996134,2.09009376,17255.0,17254.0,0.86092058]
[1673344997422,2.24670833,17255.0,17254.0,0.86092058]
[1673344997928,1.81277709,17255.0,17254.0,0.86092058]
[1673345001457,0.82661638,17255.0,17254.0,0.86092058]
[1673345001712,1.81279697,17255.0,17254.0,0.86092058]
[1673345002722,2.26135279,17255.0,17254.0,0.86092058]
[1673345004608,2.26135279,17255.0,17254.0,0.17751122]
[1673345004860,3.15630442,17255.0,17254.0,0.17751122]
[1673345005110,3.51729542,17255.0,17254.0,0.17751122]
[1673345005863,3.40889916,17255.0,17254.0,0.17751122]
[1673345006110,3.51729343,17255.0,17254.0,0.17751122]
[1673345007143,3.30805036,17255.0,17254.0,0.17751122]
[1673345007365,3.30803926,17255.0,17254.0,0.17751122]
[1673345007610,2.87411112,17255.0,17254.0,0.17751122]
[1673345007829,3.04790816,17255.0,17254.0,0.17751122]
[1673345009068,2.8740984,17255.0,17254.0,0.17751122]
[1673345009572,3.2350894,17255.0,17254.0,0.17751122]
[1673345009830,3.66902064,17255.0,17254.0,0.17751122]
[1673345010093,3.30802964,17255.0,17254.0,0.17751122]
[1673345010370,2.42554258,17255.0,17254.0,0.17751122]
[1673345010618,1.88788418,17255.0,17254.0,0.17751122]
[1673345010864,1.26591805,17255.0,17254.0,0.17751122]
[1673345011118,2.42555001,17255.0,17254.0,0.17751122]
[1673345011367,1.26591805,17255.0,17254.0,0.17751122]
[1673345011628,2.42555095,17255.0,17254.0,0.17751122]
[1673345011880,1.26591805,17255.0,17254.0,0.17740706]
[1673345012551,1.09214967,17255.0,17254.0,0.17740706]
[1673345013487,1.54070747,17255.0,17254.0,0.17740706]
[1673345013716,2.87410578,17255.0,17254.0,0.17740706]
[1673345013940,3.23509678,17255.0,17254.0,0.17740706]
[1673345014694,3.51928567,17255.0,17254.0,0.17740706]
[1673345017690,3.17213781,17255.0,17254.0,0.17740706]
[1673345017931,3.5189207,17255.0,17254.0,0.17740706]
[1673345018182,3.75167981,17255.0,17254.0,0.17740706]
[1673345022627,4.09848251,17255.0,17254.0,0.17740706]
[1673345025939,3.73749151,17255.0,17254.0,0.17740706]
[1673345026182,4.09848251,17255.0,17254.0,0.17740706]
[1673345027105,3.73749151,17255.0,17254.0,0.17740706]
[1673345027607,3.39068881,17255.0,17254.0,0.17740706]
[1673345027830,3.75167981,17255.0,17254.0,0.17740706]
[1673345028984,3.31774857,17255.0,17254.0,0.17740706]
[1673345029245,3.9192436,17255.0,17254.0,0.17740706]
[1673345033190,3.3397016,17255.0,17254.0,0.17740706]
[1673345033930,2.90600657,17255.0,17254.0,0.17740706]
[1673345034684,3.33973405,17255.0,17254.0,0.17740706]
[1673345034936,3.33973498,17255.0,17254.0,0.17740706]
[1673345035427,2.97874398,17255.0,17254.0,0.17740706]
[1673345035670,2.54501557,17255.0,17254.0,0.17740706]
[1673345035915,2.97875077,17255.0,17254.0,0.17740706]
[1673345036135,3.33974177,17255.0,17254.0,0.17740706]
[1673345036353,3.33974177,17255.0,17254.0,0.17730348]
[1673345036575,3.3397511,17255.0,17254.0,0.17730348]
[1673345037031,2.90600657,17255.0,17254.0,0.17730348]
[1673345040861,3.33977517,17255.0,17254.0,0.17730348]
[1673345042575,2.97878417,17255.0,17254.0,0.17730348]
[1673345042793,3.33977517,17255.0,17254.0,0.17730348]
[1673345043313,3.33983164,17255.0,17254.0,0.17730348]
[1673345044086,2.53028482,17255.0,17254.0,0.17730348]
[1673345044357,2.97884064,17255.0,17254.0,0.17730348]
[1673345045087,2.87738533,17255.0,17254.0,0.17730348]
[1673345046632,3.32594115,17255.0,17254.0,0.17730348]
[1673345046847,2.87738533,17255.0,17254.0,0.17730348]
[1673345047131,3.32594115,17255.0,17254.0,0.17730348]
[1673345049651,2.87738533,17255.0,17254.0,0.17730348]
[1673345049903,2.7670062,17255.0,17254.0,0.17730348]
[1673345051196,3.21556202,17255.0,17254.0,0.17730348]
[1673345051449,3.32654474,17255.0,17254.0,0.17730348]
[1673345051928,2.97944423,17255.0,17254.0,0.17730348]
[1673345052175,3.32645142,17255.0,17254.0,0.17730348]
[1673345052917,2.97944423,17255.0,17254.0,0.17730348]
[1673345053418,3.34043523,17255.0,17254.0,0.17730348]
[1673345053659,2.97944423,17255.0,17254.0,0.17730348]
[1673345054403,3.34043523,17255.0,17254.0,0.17730348]
[1673345056315,2.97944423,17255.0,17254.0,0.17730348]
[1673345057496,3.34043523,17255.0,17254.0,0.17730348]
[1673345058713,3.34043523,17255.0,17254.0,0.17721297]
[1673345059239,2.81164423,17255.0,17254.0,0.17721297]
[1673345060988,2.59897921,17255.0,17254.0,0.17721297]
[1673345061231,1.81235913,17255.0,17254.0,0.17721297]
[1673345062005,1.63888257,17255.0,17254.0,0.17721297]
[1673345062254,1.81235913,17255.0,17254.0,0.17721297]
[1673345062505,1.98575544,17255.0,17254.0,0.17721297]
[1673345062753,1.81235913,17255.0,17254.0,0.17721297]
[1673345063487,1.63889756,17255.0,17254.0,0.84684955]
[1673345063730,0.47926565,17255.0,17254.0,0.84684955]
[1673345064749,1.98573884,17255.0,17254.0,0.84684955]
[1673345065227,1.98573236,17255.0,17254.0,0.84684955]
[1673345065485,0.47925917,17255.0,17254.0,0.84684955]
[1673345065980,1.63885201,17255.0,17254.0,0.84684955]
[1673345066488,1.63885201,17255.0,17254.0,0.17721297]
[1673345066737,1.81232006,17255.0,17254.0,0.17721297]
[1673345067738,2.26087588,17255.0,17254.0,0.17721297]
[1673345068734,2.54406755,17255.0,17254.0,0.17721297]
[1673345069242,2.54406755,17255.0,17254.0,0.16871297]
[1673345072539,3.20732819,17255.0,17254.0,0.16871297]
[1673345072796,2.94098985,17255.0,17254.0,0.16871297]
[1673345073046,2.9557206,17255.0,17254.0,0.16871297]
[1673345074104,3.38911096,17255.0,17254.0,0.16871297]
[1673345081782,3.38911096,17255.0,17254.0,0.16864794]
[1673345082024,2.9557206,17255.0,17254.0,0.16864794]
[1673345082512,3.38911494,17255.0,17254.0,0.16864794]
[1673345082763,2.9557206,17255.0,17254.0,0.16864794]
[1673345083746,3.02822209,17255.0,17254.0,0.16864794]
[1673345083987,3.38921309,17255.0,17254.0,0.16864794]
[1673345085085,3.02822209,17255.0,17254.0,0.16864794]
[1673345085885,3.38921309,17255.0,17254.0,0.16864794]
[1673345086652,3.02822209,17255.0,17254.0,0.16864794]
[1673345087405,3.38921309,17255.0,17254.0,0.16864794]
[1673345088617,3.02822209,17255.0,17254.0,0.16864794]
[1673345089120,3.20696577,17255.0,17254.0,0.16864794]
[1673345090138,2.86012209,17255.0,17254.0,0.16864794]
[1673345090641,1.74830563,17255.0,17254.0,0.16864794]
[1673345090882,1.81232407,17255.0,17254.0,0.86075012]
[1673345091131,1.63892174,17255.0,17254.0,0.16864794]
[1673345091379,2.26087989,17255.0,17254.0,0.16864794]
[1673345092363,1.81232407,17255.0,17254.0,0.16864794]
[1673345094130,1.98575055,17255.0,17254.0,0.16864794]
[1673345094638,1.63890643,17255.0,17254.0,0.16864794]
[1673345096898,0.47931359,17255.0,17254.0,0.16864794]
[1673345097157,1.63890344,17255.0,17254.0,0.16864794]
[1673345097406,0.47931359,17255.0,17254.0,0.16864794]
[1673345097656,0.21917034,17255.0,17254.0,0.8085456]
[1673345097909,0.41917034,17255.0,17254.0,0.80836974]
[1673345098913,0.41909526,17255.0,17254.0,0.80836974]
[1673345100364,1.83884502,17255.0,17254.0,0.80836974]
[1673345100863,0.67923851,17255.0,17254.0,0.80836974]
[1673345101141,1.83884647,17255.0,17254.0,0.80836974]
[1673345101389,1.57870322,17255.0,17254.0,0.80836974]
[1673345101614,0.41909526,17255.0,17254.0,0.80836974]
[1673345101832,0.41616626,17255.0,17254.0,0.80836974]
[1673345103355,1.5757706,17255.0,17254.0,0.80836974]
[1673345103572,0.41616626,17255.0,17254.0,0.80836974]
[1673345107486,0.67631424,17255.0,17254.0,0.80836974]
[1673345107744,0.41616626,17255.0,17254.0,0.80836974]
[1673345108241,0.67631424,17255.0,17254.0,0.80836974]
[1673345109496,0.41616626,17255.0,17254.0,0.80836974]
[1673345109994,0.21616626,17255.0,17254.0,0.80836974]
[1673345113972,0.47631424,17255.0,17254.0,0.80836974]
[1673345115967,0.21616626,17255.0,17254.0,0.80836974]
[1673345116220,0.47631424,17255.0,17254.0,0.80836974]
[1673345117459,0.21616626,17255.0,17254.0,0.80836974]
[1673345118958,0.47631424,17255.0,17254.0,0.80836974]
[1673345119219,1.63591392,17255.0,17254.0,0.80836974]
[1673345119453,0.47631424,17255.0,17254.0,0.80836974]
[1673345120211,1.63590798,17255.0,17254.0,0.80836974]
[1673345122219,2.0844638,17255.0,17254.0,0.80836974]
[1673345123442,2.25788144,17255.0,17254.0,0.16847208]
[1673345123692,2.69146141,17255.0,17254.0,0.16847208]
[1673345123946,2.54399209,17255.0,17254.0,0.16847208]
[1673345124195,2.43131343,17255.0,17254.0,0.16839279]
[1673345124445,2.54399113,17255.0,17254.0,0.16839279]
[1673345124977,2.43131343,17255.0,17254.0,0.16839279]
[1673345126257,3.211055,17255.0,17254.0,0.16839279]
[1673345126520,2.86421088,17255.0,17254.0,0.16839279]
[1673345126774,3.22520188,17255.0,17254.0,0.16839279]
[1673345127027,2.86421088,17255.0,17254.0,0.16839279]
[1673345127529,3.22520188,17255.0,17254.0,0.16839279]
[1673345128526,2.86421088,17255.0,17254.0,0.16839279]
[1673345131806,3.21107146,17255.0,17254.0,0.16839279]
[1673345132145,3.22520188,17255.0,17254.0,0.16839279]
[1673345132338,2.86421088,17255.0,17254.0,0.16839279]
[1673345134062,3.21103356,17255.0,17254.0,0.16839279]
[1673345136505,3.2109769,17255.0,17254.0,0.16839279]
[1673345136759,2.86421088,17255.0,17254.0,0.16839279]
[1673345137013,3.21097708,17255.0,17254.0,0.16839279]
[1673345138799,2.86421088,17255.0,17254.0,0.16839279]
[1673345139303,3.21098659,17255.0,17254.0,0.16839279]
[1673345139812,3.57195284,17255.0,17254.0,0.16839279]
[1673345140089,3.22520188,17255.0,17254.0,0.16839279]
[1673345140601,3.44375288,17255.0,17254.0,0.16839279]
[1673345141103,3.80474388,17255.0,17254.0,0.16839279]
[1673345143073,3.21095979,17255.0,17254.0,0.16839279]
[1673345143548,3.57195079,17255.0,17254.0,0.16839279]
[1673345144075,3.21095979,17255.0,17254.0,0.16839279]
[1673345144821,2.86421088,17255.0,17254.0,0.16839279]
[1673345145046,2.86421088,17255.0,17254.0,0.16829921]
[1673345146164,2.86421088,17255.0,17254.0,0.16812334]
[1673345147605,3.21095607,17255.0,17254.0,0.16812334]
[1673345148065,2.86421088,17255.0,17254.0,0.16812334]
[1673345150329,3.22520188,17255.0,17254.0,0.16812334]
[1673345150576,2.86421088,17255.0,17254.0,0.16812334]
[1673345152096,2.79162191,17255.0,17254.0,0.16812334]
[1673345153108,2.41108333,17255.0,17254.0,0.16812334]
[1673345153616,2.77207433,17255.0,17254.0,0.16812334]
[1673345154599,3.20553115,17255.0,17254.0,0.16812334]
[1673345154845,3.20557225,17255.0,17254.0,0.16812334]
[1673345156605,2.84458125,17255.0,17254.0,0.16812334]
[1673345158814,2.41108333,17255.0,17254.0,0.16812334]
[1673345159301,2.77207433,17255.0,17254.0,0.16812334]
[1673345162615,3.29280572,17255.0,17254.0,0.16812334]
[1673345164582,3.32623577,17255.0,17254.0,0.16812334]
[1673345167705,3.32623577,17255.0,17254.0,0.1680253]
[1673345169184,3.49323577,17255.0,17254.0,0.1680253]
[1673345171442,3.49323577,17255.0,17254.0,0.16781811]
[1673345173400,2.97250438,17255.0,17254.0,0.16781811]
[1673345174404,3.49323577,17255.0,17254.0,0.16781811]
[1673345181225,2.97250438,17255.0,17254.0,0.16781811]
[1673345181484,2.61151338,17255.0,17254.0,0.16781811]
[1673345182803,3.04518203,17255.0,17254.0,0.16781811]
[1673345185765,2.61151338,17255.0,17254.0,0.16781811]
[1673345186234,3.04514574,17255.0,17254.0,0.16781811]
[1673345187240,2.61151338,17255.0,17254.0,0.16781811]
[1673345187711,3.04509053,17255.0,17254.0,0.16781811]
[1673345187922,2.61151338,17255.0,17254.0,0.16781811]
[1673345188677,3.04509945,17255.0,17254.0,0.16781811]
[1673345191153,3.3919482,17255.0,17254.0,0.16781811]
[1673345191648,2.94339736,17255.0,17254.0,0.16781811]
[1673345192404,3.39195318,17255.0,17254.0,0.16781811]
[1673345193424,2.94339736,17255.0,17254.0,0.16781811]
[1673345193672,2.49030197,17255.0,17254.0,0.16781811]
[1673345194664,3.37244386,17255.0,17254.0,0.16781811]
[1673345194914,2.93885779,17255.0,17254.0,0.16781811]
[1673345195410,3.37244386,17255.0,17254.0,0.16781811]
[1673345195902,2.93885779,17255.0,17254.0,0.16781811]
[1673345196156,2.49030197,17255.0,17254.0,0.16781811]
[1673345197432,3.37244386,17255.0,17254.0,0.16781811]
[1673345197681,3.11227447,17255.0,17254.0,0.16781811]
[1673345198199,3.23347272,17255.0,17254.0,0.16781811]
[1673345199250,3.23335413,17255.0,17254.0,0.16781811]
[1673345200197,3.11215588,17255.0,17254.0,0.16781811]
[1673345201206,2.49015611,17255.0,17254.0,0.16781811]
[1673345202187,2.93871193,17255.0,17254.0,0.16781811]
[1673345202435,3.37229893,17255.0,17254.0,0.16781811]
[1673345202935,3.11215588,17255.0,17254.0,0.16781811]
[1673345203155,3.23318238,17255.0,17254.0,0.16781811]
[1673345209580,2.88632865,17255.0,17254.0,0.16781811]
[1673345209836,3.23319125,17255.0,17254.0,0.16781811]
[1673345210108,2.88632865,17255.0,17254.0,0.16781811]
[1673345210361,3.23321659,17255.0,17254.0,0.16781811]
[1673345210611,2.88632865,17255.0,17254.0,0.16781811]
[1673345212706,2.45274258,17255.0,17254.0,0.16781811]
[1673345214751,2.81373358,17255.0,17254.0,0.16781811]
[1673345215503,2.45274258,17255.0,17254.0,0.16781811]
[1673345215991,2.81373358,17255.0,17254.0,0.16781811]
[1673345216245,2.45274258,17255.0,17254.0,0.16781811]
[1673345217258,3.05295311,17255.0,17254.0,0.16781811]
[1673345217500,4.52484083,17255.0,17254.0,0.16781811]
[1673345220483,4.50176722,17255.0,17254.0,0.16781811]
[1673345220996,4.75176722,17255.0,17254.0,0.16781811]
[1673345221480,4.74949822,17255.0,17254.0,0.16781811]
[1673345224008,4.22876683,17255.0,17254.0,0.16781811]
[1673345224265,4.74949822,17255.0,17254.0,0.16781811]
[1673345226033,4.22876683,17255.0,17254.0,0.16781811]
[1673345229203,4.74949822,17255.0,17254.0,0.16781811]
[1673345235066,4.74949822,17255.0,17254.0,0.16707835]
[1673345249944,4.71863155,17255.0,17254.0,0.16707835]
[1673345252563,4.71845754,17255.0,17254.0,0.16707835]
[1673345254519,4.74030348,17255.0,17254.0,0.16707835]
[1673345255025,4.37931248,17255.0,17254.0,0.16707835]
[1673345255526,4.74030348,17255.0,17254.0,0.16707835]
[1673345259269,4.37931248,17255.0,17254.0,0.16707835]
[1673345259794,4.74030348,17255.0,17254.0,0.16707835]
[1673345260269,3.85858109,17255.0,17254.0,0.16707835]
[1673345260749,4.21957209,17255.0,17254.0,0.16707835]
[1673345261001,3.85858109,17255.0,17254.0,0.16707835]
[1673345262467,4.21957209,17255.0,17254.0,0.16707835]
[1673345263197,3.85858109,17255.0,17254.0,0.16707835]
[1673345263966,4.21957209,17255.0,17254.0,0.16707835]
[1673345265404,3.85858109,17255.0,17254.0,0.16707835]
[1673345265900,3.75858109,17255.0,17254.0,0.16707835]
[1673345266872,4.11957209,17255.0,17254.0,0.16707835]
[1673345269131,4.64030348,17255.0,17254.0,0.16707835]
[1673345272410,4.11957209,17255.0,17254.0,0.16690434]
[1673345272661,4.64030348,17255.0,17254.0,0.16690434]
[1673345277702,6.30517091,17255.0,17254.0,0.16690434]
[1673345277957,6.13807091,17255.0,17254.0,0.16690434]
[1673345278725,6.76155298,17255.0,17254.0,0.16690434]
[1673345278980,7.44221293,17255.0,17254.0,0.16690434]
[1673345279238,6.65859648,17255.0,17254.0,0.16690434]
[1673345279755,6.65859648,17255.0,17254.0,0.142085]
[1673345280022,6.79459648,17255.0,17254.0,0.145085]
[1673345280568,7.5001264,17255.0,17254.0,0.145085]
[1673345281788,6.79459648,17255.0,17254.0,0.145085]
[1673345283581,7.2551474,17255.0,17254.0,0.145085]
[1673345284593,7.30935207,17255.0,17254.0,0.145085]
[1673345285617,7.2551474,17255.0,17254.0,0.145085]
[1673345285878,6.67036711,17255.0,17254.0,0.145085]
[1673345286128,7.2551474,17255.0,17254.0,0.145085]
[1673345287139,6.67036711,17255.0,17254.0,0.145085]
[1673345287654,7.33326816,17255.0,17254.0,0.145085]
[1673345287917,7.33326816,17255.0,17254.0,0.10423693]
[1673345288678,7.92740491,17255.0,17254.0,0.10423693]
[1673345289466,7.30639609,17255.0,17254.0,0.10423693]
[1673345289927,7.88578715,17255.0,17254.0,0.10423693]
[1673345294463,7.93521475,17255.0,17254.0,0.10423693]
[1673345294973,7.93024145,17255.0,17254.0,0.10423693]
[1673345297715,7.93024145,17255.0,17254.0,0.07561766]
[1673345298696,7.34546116,17255.0,17254.0,0.07561766]
[1673345298953,7.34546116,17255.0,17254.0,0.04116365]
[1673345299209,8.52116116,17255.0,17254.0,0.04116365]
[1673345300208,7.51346116,17255.0,17254.0,0.04116365]
[1673345300717,7.7745632,17255.0,17254.0,0.04116365]
[1673345301222,7.7726945,17255.0,17254.0,0.04116365]
[1673345301491,7.7736945,17255.0,17254.0,0.04116365]
[1673345306824,7.7736945,17255.0,17254.0,0.02112637]
[1673345307821,7.7736945,17255.0,17254.0,0.01177336]
[1673345310099,7.6065945,17255.0,17254.0,0.01177336]
[1673345314968,7.6065945,17255.0,17254.0,0.00608117]
[1673345315497,7.4705945,17255.0,17254.0,0.00308117]
[1673345315751,7.6075945,17255.0,17254.0,0.00308117]
[1673345316527,7.6681282,17255.0,17254.0,0.00308117]
[1673345316782,7.6681282,17255.0,17247.0,0.1882954]
[1673345317042,0.4329364,17249.0,17248.0,0.25457754]
[1673345317305,3.82916427,17249.0,17248.0,0.01689965]
[1673345318332,4.96468795,17249.0,17248.0,0.01689965]
[1673345318553,5.50659643,17249.0,17248.0,0.01689965]
[1673345319030,6.10201479,17249.0,17248.0,0.01689965]
[1673345322772,5.50659643,17249.0,17248.0,0.01689965]
[1673345323260,6.08191658,17249.0,17248.0,0.01689965]
[1673345323506,5.50659643,17249.0,17248.0,0.01689965]
[1673345323728,6.10859106,17249.0,17248.0,0.01689965]
[1673345324717,5.50659643,17249.0,17248.0,0.01689965]
[1673345326510,6.03682358,17249.0,17248.0,0.01689965]
[1673345326727,5.50659643,17249.0,17248.0,0.01689965]
[1673345326948,6.11810151,17249.0,17248.0,0.01689965]
[1673345328216,5.59857783,17249.0,17248.0,0.01689965]
[1673345330134,5.50659643,17249.0,17248.0,0.01689965]
[1673345330400,6.03146656,17249.0,17248.0,0.01689965]
[1673345330658,4.29223756,17249.0,17248.0,0.01689965]
[1673345330911,6.03146656,17249.0,17248.0,0.01689965]
[1673345331460,6.13016444,17249.0,17248.0,0.01689965]
[1673345331716,5.50659643,17249.0,17248.0,0.01689965]
[1673345331974,6.09528513,17249.0,17248.0,0.01689965]
[1673345333541,5.50659643,17249.0,17248.0,0.01689965]
[1673345334590,5.50659643,17249.0,17248.0,0.01164792]
[1673345335402,6.18299495,17249.0,17248.0,0.01164792]
[1673345341094,6.47035809,17249.0,17248.0,0.01164792]
[1673345341351,7.60891291,17249.0,17248.0,0.01164792]
[1673345341596,8.19337705,17249.0,17248.0,0.01164792]
[1673345341854,8.19562506,17249.0,17248.0,0.01164792]
[1673345342108,6.45509571,17249.0,17248.0,0.01164792]
[1673345342608,6.68681117,17249.0,17248.0,0.01164792]
[1673345342855,5.86838118,17249.0,17248.0,0.01164792]
[1673345344621,5.86838118,17249.0,17248.0,0.00805317]
[1673345344869,6.45284532,17249.0,17248.0,0.00805317]
[1673345345380,7.60890354,17249.0,17248.0,0.00805317]
[1673345345636,8.23561631,17249.0,17248.0,0.00805317]
[1673345345891,6.72677947,17249.0,17248.0,0.00805317]
[1673345346952,6.18487099,17249.0,17248.0,0.00805317]
[1673345347217,4.68241754,17249.0,17248.0,0.00805317]
[1673345347553,3.80238026,17249.0,17248.0,0.00805317]
[1673345348317,4.24388604,17249.0,17248.0,0.00805317]
[1673345348559,4.60487704,17249.0,17248.0,0.00805317]
[1673345348807,4.60487704,17249.0,17245.0,10.0]
[1673345348808,5.88761438,17249.0,17245.0,10.0]
[1673345349048,0.80575634,17246.0,17245.0,10.0]
[1673345349302,4.56211722,17246.0,17245.0,10.0]
[1673345349535,5.61006122,17246.0,17245.0,10.0]
[1673345349769,6.43945228,17246.0,17245.0,10.0]
[1673345350231,5.29303327,17246.0,17245.0,10.0]
[1673345350476,4.78698699,17246.0,17245.0,10.0]
[1673345350709,3.90714299,17246.0,17245.0,10.0]
[1673345350993,3.89414299,17246.0,17245.0,10.0]
[1673345351239,4.03014299,17246.0,17245.0,10.0]
[1673345351484,4.19414299,17246.0,17245.0,10.0]
[1673345351717,4.03014299,17246.0,17245.0,9.99593947]
[1673345351980,4.2314612,17246.0,17245.0,9.99593947]
[1673345352221,3.21894795,17246.0,17245.0,9.99593947]
[1673345352445,3.52273439,17246.0,17245.0,9.99593947]
[1673345352696,3.17658124,17246.0,17245.0,9.99593947]
[1673345352941,3.04058124,17246.0,17245.0,9.99593947]
[1673345353206,3.45084573,17246.0,17245.0,9.99593947]
[1673345353501,3.38684573,17246.0,17245.0,9.99593947]
[1673345353725,3.51984573,17246.0,17245.0,9.99593947]
[1673345354465,2.94000173,17246.0,17245.0,9.99593947]
[1673345354679,2.93909691,17246.0,17245.0,9.99593947]
[1673345354917,2.59283242,17246.0,17245.0,9.99593947]
[1673345355152,2.93925739,17246.0,17245.0,9.99593947]
[1673345355594,2.59283242,17246.0,17245.0,9.99593947]
[1673345356542,3.17267642,17246.0,17245.0,9.99593947]
[1673345356775,2.74000678,17246.0,17245.0,9.99593947]
[1673345358179,2.74000678,17246.0,17245.0,9.99587287]